[Event "US Masters 2022"]
[Site "Charlotte"]
[Date "2022.11.27"]
[Round "7.23"]
[White "Paikidze, Nazi"]
[Black "Korley, Kassa"]
[Result "0-1"]
[ECO "D12"]
[WhiteElo "2323"]
[BlackElo "2451"]
[Annotator "TA"]
[PlyCount "82"]
[EventDate "2022.11.23"]
[EventType "swiss"]
[EventCountry "USA"]
[SourceTitle "playchess.com"]
[Source "ChessBase"]
[SourceQuality "1"]
[TimeControl "5400+30"]

{[%evp 13,82,16,18,-9,-2,-30,0,-8,-18,-12,-13,-51,-46,-40,-52,-43,-52,-65,-29,-31,-33,-34,-36,-85,-77,-81,-76,-104,-104,-110,-103,-106,-95,-95,-76,-81,-66,-82,-82,-82,-61,-82,-82,-82,-75,-75,-75,-158,-133,-133,-158,-397,-358,-512,-467,-1587,-1335,-2915,-2537,-29978,-29979,-29979,-29979,-29979,-6632,-29981,-29982,-29984,-5812,-29987,-29986]} 1. d4 {[%emt 0:00:03]} d5 {[%emt 0:00:51]} 2. Nf3 {[%emt 0:00:18]} Nf6 {[%emt 0:00:23]} 3. c4 {[%emt 0:00:05]} c6 {[%emt 0:00:30]} 4. e3 {[%emt 0:01:23]} Bf5 {[%emt 0:00:47]} 5. Nc3 {[%emt 0:00:14]} e6 {[%emt 0:00:06]} 6. Bd3 {[%emt 0:05:23]} Bg6 {[%emt 0:00:59]} 7. O-O {[%emt 0:01:36]} Nbd7 {[%emt 0:00:17]} 8. cxd5 {[%emt 0:15:20] [#] Bxg6 is the strong threat. D12: Slav Defence: 3 Nf3 Nf6 4 e3 Bf5.} exd5 {[%emt 0:04:41]} 9. Ne5 {[%emt 0:05:59]} Bxd3 {[%emt 0:03:16]} 10. Qxd3 {[%emt 0:03:55] The position is equal.} Bd6 {[%emt 0:00:23]} 11. f4 {[%emt 0:00:51] [#]} Bb4 $146 {[%emt 0:07:42]} ({Predecessor:} 11... Qe7 12. Bd2 Ne4 13. Nxe4 dxe4 14. Qb3 Nf6 15. Be1 Nd5 16. Bf2 O-O 17. Qc2 f5 {1-0 (28) Srihari,L (2414)-Lee,Q (2262) Chess.com INT 2020}) 12. Ne2 {[%emt 0:06:08]} Ne4 {[%emt 0:01:47]} 13. Qb3 {[%emt 0:01:42]} Qb6 {[%emt 0:00:10]} 14. Nxd7 {[%emt 0:02:03]} Kxd7 {[%emt 0:00:10]} 15. Ng3 {[%emt 0:02:48]} Rae8 {[%emt 0:10:22] Black is more active.} 16. Nxe4 {[%emt 0:04:07]} Rxe4 {[%emt 0:00:05]} 17. a3 {[%emt 0:00:14]} Bd6 {[%emt 0:00:21]} 18. Qxb6 {[%emt 0:00:10]} (18. Qd3 $15) 18... axb6 $17 {[%emt 0:00:04]} 19. Bd2 {[%emt 0:00:45]} c5 {[%emt 0:03:26]} 20. dxc5 {[%emt 0:03:30]} bxc5 {[%emt 0:01:00]} 21. Kf2 {[%emt 0:06:33]} Rhe8 {[%emt 0:01:06][%cal Od6f4] Strongly threatening ...Bxf4!} 22. Rfe1 {[%emt 0:00:17]} b5 {[%emt 0:01:25]} 23. g3 {[%emt 0:01:53]} g6 {[%emt 0:04:24]} 24. Bc3 {[%emt 0:02:11]} f5 {[%emt 0:07:08]} 25. Rad1 {[%emt 0:02:27]} Kc6 {[%emt 0:01:41]} 26. Rc1 {[%emt 0:04:49]} h5 {[%emt 0:07:35][%cal Oh5h4]} 27. h4 {[%emt 0:05:23]} c4 {[%emt 0:12:26]} 28. Bd4 {[%emt 0:00:04]} Bc5 {[%emt 0:00:33]} 29. Bxc5 {[%emt 0:00:55]} Kxc5 {[%emt 0:00:01][%mdl 4096] Endgame KRR-KRR} 30. Rc3 {[%emt 0:00:46]} (30. Rc2 $142) 30... Rd8 {[%emt 0:02:54]} 31. Rd1 {[%emt 0:04:38]} d4 {[%emt 0:05:38]} 32. b4+ $2 {[%emt 0:01:24] This move loses the game for White.} (32. exd4+ $17 {is a better defense.} Rdxd4 33. Rxd4 Kxd4 34. Rf3) 32... Kd5 {[%emt 0:01:37] And now ...Rde8 would win.} 33. a4 {[%emt 0:05:59]} (33. exd4 $142 Rde8 34. Rc2) 33... Rde8 {[%emt 0:03:39][%cal Re4e3]} 34. a5 {[%emt 0:07:05]} (34. exd4 $142 bxa4 35. Rdc1) 34... Rxe3 $19 {[%emt 0:01:42]} 35. Rxe3 {[%emt 0:00:06]} Rxe3 {[%emt 0:00:03] KR-KR} 36. Ra1 {[%emt 0:00:14]} c3 {[%emt 0:03:21]} 37. a6 {[%emt 0:02:18]} Re8 {[%emt 0:00:43]} 38. a7 {[%emt 0:00:21]} Ra8 {[%emt 0:00:04] [#] ( -> ...d3)} 39. Ke2 {[%emt 0:00:14]} Kc4 {[%emt 0:00:03]} 40. Ra6 {[%emt 0:01:05]} d3+ {[%emt 0:00:07][%cal Bd4d3,Bd3d2][%mdl 32]} 41. Ke3 {[%emt 0:00:33]} d2 {[%emt 0:00:32] Weighted Error Value: White=0.97/Black=0.09 (flawless)} 0-1

[Event "US Masters 2022"]
[Site "Charlotte"]
[Date "2022.11.27"]
[Round "7.24"]
[White "Canty, James"]
[Black "Sargsyan, Anna M."]
[Result "1/2-1/2"]
[ECO "C56"]
[WhiteElo "2158"]
[BlackElo "2384"]
[Annotator "TA"]
[PlyCount "37"]
[EventDate "2022.11.23"]
[EventType "swiss"]
[EventCountry "USA"]
[SourceTitle "playchess.com"]
[Source "ChessBase"]
[SourceQuality "1"]
[TimeControl "5400+30"]

{[%evp 22,37,0,0,0,-14,-16,-18,0,-17,0,-12,21,-11,-17,-70,-12,-40]} 1. e4 {[%emt 0:09:57]} e5 {[%emt 0:00:21]} 2. Nf3 {[%emt 0:00:16]} Nc6 {[%emt 0:00:07]} 3. d4 {[%emt 0:00:17]} exd4 {[%emt 0:00:07]} 4. Bc4 {[%emt 0:00:03]} Nf6 {[%emt 0:00:09]} 5. e5 {[%emt 0:00:30]} d5 {[%emt 0:00:07]} 6. Bb5 {[%emt 0:00:02]} Ne4 {[%emt 0:00:09]} 7. Nxd4 {[%emt 0:00:03]} Bd7 {[%emt 0:00:11]} 8. Bxc6 {[%emt 0:00:10]} bxc6 {[%emt 0:00:05]} 9. O-O {[%emt 0:00:13]} Bc5 {[%emt 0:00:10]} 10. f3 {[%emt 0:00:35]} Ng5 {[%emt 0:00:06]} 11. f4 {[%emt 0:00:06]} Ne4 {[%emt 0:00:05]} 12. Be3 {[%emt 0:00:03]} Bb6 $1 {[%emt 0:00:18] 12...Bb6 is better than 12...0-0. C56: Two Knights: 4 d4 exd4 5 0-0 Nxe4.} 13. Nc3 {[%emt 0:00:06]} Nxc3 {[%emt 0:02:55]} 14. bxc3 {[%emt 0:00:03]} O-O {[%emt 0:00:47]} 15. Re1 {[%emt 0:20:25]} Qe7 {[%emt 0:02:15]} 16. Qf3 {[%emt 0:01:47]} Rad8 {[%emt 0:13:20] [#]} 17. Qg3 $146 {[%emt 0:17:57]} ({Predecessor:} 17. Qf2 Rfe8 18. a4 c5 19. Nb3 c4 20. Nc5 Ba5 21. Bd4 Bc8 22. f5 Qg5 23. Re3 Qxf5 24. Qxf5 Bxf5 {0-1 (39) Simons,M (2005)-Venkataramanan,T (2221) England 2019}) 17... Rfe8 {[%emt 0:07:20]} 18. Kh1 {[%emt 0:03:21]} ({Better is} 18. a4 $11) 18... Bxd4 {[%emt 0:08:10]} ({Black should play} 18... c5 $15 19. Nf3 Bf5) 19. Bxd4 {[%emt 0:00:46] Weighted Error Value: White=0.23 (precise) /Black=0.17 (very precise)} (19. cxd4 $5 {[%cal Rf4f5]} Rb8 20. Bc1 $15) 1/2-1/2

[Event "US Masters 2022"]
[Site "Charlotte"]
[Date "2022.11.27"]
[Round "8.1"]
[White "Jacobson, Brandon"]
[Black "Yoo, Christopher Woojin"]
[Result "0-1"]
[ECO "D45"]
[WhiteElo "2551"]
[BlackElo "2573"]
[Annotator "TA"]
[PlyCount "98"]
[EventDate "2022.11.23"]
[EventType "swiss"]
[EventCountry "USA"]
[SourceTitle "playchess.com"]
[Source "ChessBase"]
[SourceQuality "1"]
[TimeControl "5400+30"]

{[%evp 19,98,0,0,0,12,4,0,12,0,0,17,12,12,6,20,22,34,12,17,33,12,7,9,12,28,20,19,0,2,0,0,0,-12,-14,0,0,-4,-94,-53,-103,-77,-123,-104,-128,-121,-128,-129,-122,-129,-127,-122,-118,-97,-120,-125,-118,-125,-125,-119,-182,-180,-191,-192,-463,-487,-491,-488,-484,-482,-476,-466,-537,-510,-689,-681,-819,-749,-785,-649,-1260,-1136]} 1. Nf3 {[%emt 0:05:36]} d5 {[%emt 0:00:56]} 2. e3 {[%emt 0:00:08]} Nf6 {[%emt 0:00:40]} 3. c4 {[%emt 0:00:06]} c6 {[%emt 0:00:31]} 4. Nc3 {[%emt 0:02:53]} Nbd7 {[%emt 0:00:35]} 5. d4 {[%emt 0:01:33]} e6 {[%emt 0:00:12]} 6. Be2 {[%emt 0:00:04]} b6 {[%emt 0:02:55]} 7. O-O {[%emt 0:00:29]} Bb7 {[%emt 0:00:44]} 8. b3 {[%emt 0:00:07]} Bd6 {[%emt 0:02:02]} 9. Bb2 {[%emt 0:00:05]} O-O {[%emt 0:00:04]} 10. Qc2 {[%emt 0:00:06]} Qe7 {[%emt 0:05:49]} 11. Rfe1 {[%emt 0:00:16] D45: Semi-Slav: 5 e3.} Rfd8 $5 {[%emt 0:03:32][%mdl 4] Leaves trodden paths.} 12. e4 {[%emt 0:00:32]} (12. Rad1 Bb4 13. Nd2 e5 14. cxd5 cxd5 15. dxe5 Nxe5 16. Nb5 a6 17. Nd4 Rac8 18. Qb1 Ne4 19. Nxe4 dxe4 20. Rf1 Qg5 {0-1 (50) Jacobson,B (2530)-Yoo,C (2495) Charlotte 2021}) 12... Nxe4 {[%emt 0:00:37]} 13. Nxe4 {[%emt 0:00:07] The position is equal.} dxe4 {[%emt 0:00:04]} 14. Qxe4 {[%emt 0:00:06] [#]} Ba3 $146 {[%emt 0:04:44]} ({Predecessor:} 14... Nf6 15. Qc2 Ba3 16. Rad1 Bxb2 17. Qxb2 c5 18. dxc5 Qxc5 19. Ne5 h6 20. b4 Qc7 {½-½ (28) Neto,H (2590)-Ljubicic,L (2589) ICCF email 2014}) 15. Bxa3 {[%emt 0:26:28]} Qxa3 {[%emt 0:01:04]} 16. Qf4 {[%emt 0:00:03]} Rac8 {[%emt 0:07:25]} 17. Rad1 {[%emt 0:01:27][%cal Oc4c5]} Qe7 {[%emt 0:01:25]} 18. Rd2 {[%emt 0:03:31]} c5 {[%emt 0:09:32]} 19. d5 {[%emt 0:11:52]} exd5 {[%emt 0:03:47]} 20. cxd5 {[%emt 0:00:02][%cal Oe2a6] Ba6! is the strong threat.} Qf6 {[%emt 0:02:05]} 21. Qg3 {[%emt 0:00:02]} a6 {[%emt 0:04:55]} 22. a4 {[%emt 0:00:03] Against b5} Re8 {[%emt 0:02:49]} 23. Rdd1 {[%emt 0:01:01]} Qc3 {[%emt 0:02:33]} 24. Nd2 {[%emt 0:10:34]} (24. Bc4 {simplifies} Rxe1+ 25. Nxe1 Qxg3 26. hxg3 Rd8 27. Nd3) 24... Qc2 {[%emt 0:05:45][%cal Oe8e2]} 25. Qg4 {[%emt 0:04:27]} Nf6 {[%emt 0:03:20]} 26. Qc4 {[%emt 0:00:28]} Qf5 $36 {[%emt 0:06:57][%mdl 2048] Black is more active.} 27. d6 {[%emt 0:00:54]} Rcd8 {[%emt 0:00:22]} 28. Nf3 {[%emt 0:14:01]} (28. Nf1 $11 {keeps the balance.}) 28... Re6 {[%emt 0:10:42] Black continues to play with concentration.} 29. Nh4 {[%emt 0:09:49]} (29. Bd3 $15 Rxe1+ 30. Rxe1) 29... Qe4 {[%emt 0:07:23]} 30. h3 {[%emt 0:07:40]} (30. Nf3 $142) 30... Kf8 {[%emt 0:01:38] Black is more active.} ({Don't play} 30... Rdxd6 $6 31. Qxe4 Bxe4 32. Rxd6 Rxd6 33. Bxa6 $11) (30... Rexd6 $6 31. Rxd6 Rxd6 32. Qxe4 Nxe4 33. Nf5 $11) 31. Bf1 {[%emt 0:00:55]} Qxc4 {[%emt 0:00:22] Dancing on a razor blade.} ({Worse is} 31... Qxe1 32. Rxe1 Rxe1 33. Nf5 $11) 32. Bxc4 {[%emt 0:00:06]} Rxe1+ {[%emt 0:00:09]} 33. Rxe1 {[%emt 0:00:02]} Rxd6 {[%emt 0:00:06]} 34. Nf5 {[%emt 0:00:06] [#] Against g6} Rd7 {[%emt 0:00:10]} 35. f3 {[%emt 0:00:32]} Nh5 {[%emt 0:00:53]} 36. Kf2 {[%emt 0:00:36]} g6 {[%emt 0:01:27]} 37. Ne3 {[%emt 0:00:02]} Nf4 {[%emt 0:00:31]} 38. Kg3 {[%emt 0:00:38]} Rd4 {[%emt 0:00:26]} 39. Ng4 {[%emt 0:01:07]} (39. Bf1 $17) 39... h5 $19 {[%emt 0:00:57][%cal Bh7h5,Bh5h4][%mdl 32]} 40. Ne3 {[%emt 0:00:42]} h4+ {[%emt 0:00:27]} 41. Kf2 $2 {[%emt 0:00:02] [#]} (41. Kh2) 41... Rxc4 $1 {[%emt 0:01:54][%mdl 512] Black is clearly winning.} 42. Nxc4 {[%emt 0:00:26][%mdl 4096] Endgame And now Kf1 would win. KRN-KBN} Nd3+ {[%emt 0:00:03]} 43. Ke2 {[%emt 0:00:07]} Nxe1 {[%emt 0:00:02]} 44. Kxe1 {[%emt 0:00:04] KB-KN} b5 {[%emt 0:00:02]} ({Stronger than} 44... Bd5 45. Nxb6 Bxb3 46. Nd7+ Ke7 47. Nxc5 $17) 45. axb5 {[%emt 0:00:42]} axb5 {[%emt 0:00:07]} 46. Ne5 {[%emt 0:00:08]} Ke7 {[%emt 0:00:08] Against Nd7} 47. Kd2 {[%emt 0:00:01]} Bd5 {[%emt 0:00:23]} 48. Kc2 {[%emt 0:00:14]} Kd6 {[%emt 0:00:11]} 49. Nd3 {[%emt 0:00:05] [#]} Bxb3+ $1 {[%emt 0:00:04][%mdl 512] Weighted Error Value: White=0.42/Black=0.08 (flawless)} 0-1

[Event "US Masters 2022"]
[Site "Charlotte"]
[Date "2022.11.27"]
[Round "8.2"]
[White "Cordova, Emilio"]
[Black "Mandizha, Farai"]
[Result "1/2-1/2"]
[ECO "E60"]
[WhiteElo "2561"]
[BlackElo "2359"]
[Annotator "TA"]
[PlyCount "64"]
[EventDate "2022.11.23"]
[EventType "swiss"]
[EventCountry "USA"]
[SourceTitle "playchess.com"]
[Source "ChessBase"]
[SourceQuality "1"]
[TimeControl "5400+30"]

{[%evp 10,64,17,0,0,0,4,0,13,0,17,23,13,21,17,14,22,13,25,0,14,0,55,47,58,52,49,45,58,46,95,61,89,51,44,28,31,31,27,10,20,0,0,0,0,-51,-50,-112,-54,-53,-50,-70,0,0,0,0,0]} 1. Nf3 {[%emt 0:03:01]} Nf6 {[%emt 0:06:43]} 2. c4 {[%emt 0:02:34]} g6 {[%emt 0:01:03]} 3. b3 {[%emt 0:00:41]} Bg7 {[%emt 0:00:09]} 4. Bb2 {[%emt 0:00:07]} d6 {[%emt 0:02:32]} 5. d4 {[%emt 0:00:08]} O-O {[%emt 0:00:12]} 6. e3 {[%emt 0:00:40]} e5 {[%emt 0:01:17] E60: King's Indian: Unusual lines and Fianchetto Variation without Nc3.} 7. Be2 {[%emt 0:00:55]} Re8 {[%emt 0:06:04]} 8. Nc3 {[%emt 0:00:29]} Qe7 {[%emt 0:11:31]} 9. Rc1 {[%emt 0:10:21]} e4 {[%emt 0:04:14]} 10. Nd2 {[%emt 0:00:13] [#]} c5 $146 {[%emt 0:00:27]} ({Predecessor:} 10... c6 11. O-O h5 12. Re1 Nbd7 13. f3 exf3 14. Bxf3 Bh6 15. e4 Ng4 16. Bxg4 hxg4 {0-1 (22) Bruno,E-Fiori,A (2136) Ezeiza 2001}) 11. d5 {[%emt 0:00:57]} h5 {[%emt 0:01:24]} 12. h3 {[%emt 0:03:22]} h4 {[%emt 0:01:20]} 13. Qc2 {[%emt 0:10:05]} Bf5 {[%emt 0:00:33]} 14. Nf1 {[%emt 0:07:09]} g5 {[%emt 0:01:44]} 15. g3 {[%emt 0:01:09]} Nbd7 {[%emt 0:01:21]} (15... Bg6 $11) 16. gxh4 {[%emt 0:00:08]} (16. f4 {feels hotter.} exf3 17. Qxf5 fxe2 18. Kxe2 Nh5 19. gxh4 Ng3+ 20. Nxg3 Qxe3+ 21. Kd1) 16... gxh4 {[%emt 0:00:24]} 17. f4 $1 {[%emt 0:01:24] Prevents Ne5.} exf3 {[%emt 0:12:47]} 18. Qxf5 {[%emt 0:00:15]} fxe2 {[%emt 0:00:02]} 19. Kxe2 {[%emt 0:03:03]} Bh6 {[%emt 0:04:30]} (19... Qe5 $14 20. Qxe5 Nxe5) 20. Rc2 {[%emt 0:19:37][%cal Bc1c2,Bc2f2,Bf2f5][%mdl 32]} a6 {[%emt 0:03:01] Prevents Nb5.} (20... Bxe3 $2 21. Kd1 Bd4 22. Qg5+ Kh8 23. Qxh4+ Nh7 24. Qxe7 Rxe7 25. Ng3 $18) 21. Kd1 {[%emt 0:01:33]} (21. Nd1 {looks sharper.} Qe4 22. Rg1+ Kf8 23. Qxe4 Rxe4 24. Nf2) 21... Qe5 {[%emt 0:00:28]} (21... Bxe3 $2 22. Re2 Qe5 23. Nxe3 $18) 22. Rf2 {[%emt 0:02:54] Hoping for Na4.} (22. Qf3 {is more complex.} Qh5 23. Rf2 Kf8 24. Ne2) 22... Qxf5 {[%emt 0:06:33]} (22... Bxe3 $2 23. Nxe3 Qd4+ 24. Kc2 Rxe3 25. Nd1 $18 (25. Rd1 Qe5 $14)) 23. Rxf5 {[%emt 0:00:05]} Re5 $1 {[%emt 0:01:25][%cal Be8e5,Be5g5,Bg5g2][%mdl 32]} (23... Bxe3 $2 24. Ne2 $18) 24. Rf3 {[%emt 0:00:04] aiming for Nb1.} (24. Rg1+ {keeps more tension.} Kf8 25. Rf3 b5 26. Nb1) 24... Rg5 $1 {[%emt 0:02:03]} 25. Nd2 {[%emt 0:00:05]} (25. Ne2 {simplifies} Nh5 26. Nf4 Bg7 27. Bxg7 Nxg7 28. Nd2) 25... Re8 {[%emt 0:00:29]} ({Don't take} 25... Rg2 26. Rhf1 $14) 26. Ne2 {[%emt 0:06:19]} Nh5 {[%emt 0:00:59]} (26... Ne4 {simplifies} 27. Nxe4 Rxe4 28. Rhf1 Rg2) 27. Rhf1 {[%emt 0:00:49]} (27. Rh2 $11) 27... Rg2 $1 $15 {[%emt 0:02:41]} 28. Nf4 {[%emt 0:12:15]} (28. Rg1 $15 Rxg1+ 29. Nxg1) 28... Nxf4 {[%emt 0:09:33]} (28... Bxf4 $17 29. exf4 Ree2) 29. exf4 {[%emt 0:00:06]} Ree2 {[%emt 0:00:07] Prevents R1f2.} 30. Bc1 {[%emt 0:00:04]} Ne5 {[%emt 0:01:57]} 31. fxe5 $11 {[%emt 0:01:43]} Bxd2 {[%emt 0:18:27]} 32. Rxf7 Bxc1 {[%emt 0:00:00] Weighted Error Value: White=0.20 (precise) /Black=0.13 (very precise)} 1/2-1/2

[Event "US Masters 2022"]
[Site "Charlotte"]
[Date "2022.11.27"]
[Round "8.3"]
[White "Macieja, Bartlomiej"]
[Black "Cruz, Cristhian"]
[Result "1/2-1/2"]
[ECO "D31"]
[WhiteElo "2514"]
[BlackElo "2552"]
[Annotator "TA"]
[PlyCount "147"]
[EventDate "2022.11.23"]
[EventType "swiss"]
[EventCountry "USA"]
[SourceTitle "playchess.com"]
[Source "ChessBase"]
[SourceQuality "1"]
[TimeControl "5400+30"]

{[%evp 9,147,16,15,21,23,10,12,11,7,0,6,13,0,0,-6,-29,27,22,34,32,25,23,31,25,23,20,34,34,34,31,31,31,38,10,39,37,45,26,42,47,42,45,56,53,42,45,56,65,81,69,79,78,77,81,102,102,125,125,125,102,102,102,102,102,102,102,102,102,102,102,225,105,210,102,102,102,210,102,102,102,102,102,102,102,102,0,102,0,102,102,102,93,618,501,301,114,162,88,88,0,0,0,0,0,0,0,0,0,0,0,0,0,0,0,0,0,0,0,0,0,0,0,0,0,0,0,0,0,0,0,0,0,0,0,0,0,0,0,0,0]} 1. c4 {[%emt 0:00:01]} e6 {[%emt 0:03:33]} 2. Nc3 {[%emt 0:00:03]} d5 {[%emt 0:00:25]} 3. d4 {[%emt 0:00:04]} a6 {[%emt 0:00:46]} 4. cxd5 {[%emt 0:00:21]} exd5 {[%emt 0:00:07]} 5. Bf4 {[%emt 0:03:32]} Nf6 {[%emt 0:04:57]} 6. e3 {[%emt 0:00:11] D31: Queen's Gambit Declined: Semi-Slav without ...Nf6 (+ Marshall Gambit and Noteboom) and Exchange Variation lines without ...Nf6.} Bd6 {[%emt 0:04:31]} 7. Bg3 {[%emt 0:00:07]} O-O {[%emt 0:03:46]} 8. Bd3 {[%emt 0:00:46]} Bxg3 {[%emt 0:08:24]} 9. hxg3 {[%emt 0:00:06][%cal Od3h7] Hoping for Bxh7+!} h6 {[%emt 0:00:05]} 10. Nf3 {[%emt 0:03:54]} Re8 {[%emt 0:00:24]} 11. Qc2 {[%emt 0:01:06]} c5 {[%emt 0:09:33] [#]} 12. Be2 $146 {[%emt 0:13:03]} (12. dxc5 {with more complications.} d4 13. Na4 dxe3 14. Nb6) ({Predecessor:} 12. dxc5 d4 13. Nd1 Nc6 14. a3 Bg4 15. O-O Bxf3 16. gxf3 Ne5 17. Be4 d3 18. Qa4 Nxe4 19. Qxe4 {1-0 (81) Iniyan,P (2556)-Panda,S (2346) Dubai 2022}) 12... Nc6 {[%emt 0:15:59]} ({Better is} 12... c4) 13. dxc5 $11 {[%emt 0:02:08]} Qa5 {[%emt 0:00:21]} 14. O-O {[%emt 0:03:19][%cal Bh1f1,Bf1d1,Bd1d4,Bd4f4][%mdl 32]} Qxc5 {[%emt 0:00:14]} 15. Rfd1 {[%emt 0:01:32]} Be6 {[%emt 0:07:12]} 16. Rac1 {[%emt 0:05:17][%cal Oc3d5]} Qa5 {[%emt 0:00:29]} 17. Nd4 {[%emt 0:11:01]} Nxd4 {[%emt 0:03:09]} 18. Rxd4 {[%emt 0:00:54]} Rac8 {[%emt 0:00:08][%cal Of6e4]} 19. Bf3 {[%emt 0:05:57]} b5 {[%emt 0:06:04]} 20. a3 {[%emt 0:03:15] Prevents b4.} (20. Bxd5 $2 Nxd5 21. Qd2 Nxc3 22. Rxc3 Rxc3 23. Qxc3 Qxc3 24. bxc3 Bxa2 $19) 20... Rc4 {[%emt 0:01:54]} 21. Qd2 {[%emt 0:04:00]} (21. Bxd5 $2 Bxd5 22. Rcd1 Rxd4 23. Rxd4 Bc4 $19) 21... Rec8 {[%emt 0:01:52]} (21... b4 $5 {[%cal Rb4c3]} 22. axb4 (22. Nxd5 $2 Rxc1+ 23. Qxc1 Nxd5 $19) 22... Qxb4 $11) 22. Rd1 {[%emt 0:02:30][%cal Rc3d5]} (22. Bxd5 $2 Rxd4 23. exd4 Bxd5 $19) 22... Qb6 {[%emt 0:10:56]} 23. Rf4 {[%emt 0:12:13]} ({But not} 23. Bxd5 Rxd4 24. Qxd4 Qxd4 25. Rxd4 Nxd5 26. Nxd5 Rc1+ 27. Kh2 Rc2 $15) 23... Qc5 {[%emt 0:13:26]} 24. b4 {[%emt 0:19:15]} Qc6 {[%emt 0:00:13]} 25. Nxd5 {[%emt 0:00:10]} Bxd5 {[%emt 0:01:32]} 26. Bxd5 {[%emt 0:00:01]} Qxd5 {[%emt 0:00:26]} 27. Qxd5 {[%emt 0:00:03]} Nxd5 {[%emt 0:00:05]} 28. Rxd5 {[%emt 0:00:04]} Rxf4 {[%emt 0:00:18]} 29. gxf4 $14 {[%emt 0:00:02][%mdl 4096] Endgame KR-KR} Rc3 {[%emt 0:01:10]} 30. a4 $1 {[%emt 0:00:06]} bxa4 {[%emt 0:00:10]} 31. Ra5 {[%emt 0:00:01][%csl LRa4,LRa6]} Rc4 {[%emt 0:00:36]} 32. Rxa4 {[%emt 0:00:05]} ({Much worse is} 32. Rxa6 $6 Rxb4 33. Kf1 g6 $11) 32... a5 {[%emt 0:00:05]} 33. Rxa5 {[%emt 0:00:05]} Rxb4 {[%emt 0:00:02]} 34. f5 {[%emt 0:04:49]} Rb2 {[%emt 0:00:54]} 35. f3 {[%emt 0:02:54]} f6 {[%emt 0:00:52]} 36. Kh2 {[%emt 0:00:15]} Re2 {[%emt 0:00:48]} 37. e4 {[%emt 0:00:05]} h5 {[%emt 0:01:45]} 38. Kg3 {[%emt 0:01:01]} Kh7 {[%emt 0:00:27]} 39. Ra8 {[%emt 0:02:55]} Rb2 {[%emt 0:00:46]} (39... g5 $16) 40. Re8 {[%emt 0:00:46]} (40. f4 $1 $18) 40... Rb3 {[%emt 0:00:59] [#]} (40... Rb7 $16 41. Kf4 Ra7) 41. Re7 {[%emt 0:02:22]} (41. Kh4 $1 $18 {[%cal Rh4h5]}) 41... Kh6 {[%emt 0:00:19]} 42. Re6 {[%emt 0:00:03] White is more active.} Ra3 {[%emt 0:01:05] [#]} (42... Kh7 $16 43. Kf4 h4) 43. Kf4 {[%emt 0:00:17]} (43. Re8 $1 $18 {[%cal Re8h8] and the rest is easy. Rh8+ is the strong threat.} Kh7 44. Rc8) 43... Ra2 $16 {[%emt 0:00:24]} 44. g3 {[%emt 0:00:03]} Ra4 {[%emt 0:00:39]} 45. Rd6 {[%emt 0:00:08]} Rb4 {[%emt 0:00:23]} 46. Ke3 {[%emt 0:02:07] Strongly threatening e5.} Rb3+ {[%emt 0:00:16]} 47. Kf4 {[%emt 0:00:27]} Rb4 $1 {[%emt 0:00:12]} 48. Ke3 {[%emt 0:00:29]} Rb3+ $1 {[%emt 0:00:02]} 49. Rd3 {[%emt 0:00:05]} Rb1 {[%emt 0:01:02]} 50. f4 {[%emt 0:01:00] And now e5 would win.} Rf1 $2 {[%emt 0:00:46][%mdl 8192]} (50... Kh7 $16 51. Kf3 Rb5) 51. Rd8 $18 {[%emt 0:00:23][%cal Rd8h8]} Kh7 {[%emt 0:00:09] Prevents Rh8+.} 52. Rd2 $2 {[%emt 0:00:14]} (52. Rf8 $18 {has better winning chances.}) 52... Kh6 {[%emt 0:01:08]} (52... Rg1 $16) 53. Rh2 {[%emt 0:00:48]} ({White should try} 53. e5 $18 fxe5 54. Rd6+ (54. fxe5 Kg5 $11) 54... Kh7 55. Ke2 (55. fxe5 Rxf5 56. Re6 Rg5 $11)) 53... g5 $16 {[%emt 0:00:29]} 54. Ke2 {[%emt 0:00:35]} (54. fxg6 $16 {Black must now prevent f5.} Kxg6 55. Rc2) 54... Ra1 $11 {[%emt 0:00:22] The position is equal.} 55. Rf2 {[%emt 0:00:27]} Ra3 {[%emt 0:00:42]} 56. Rf3 {[%emt 0:00:33]} Ra2+ {[%emt 0:00:18]} 57. Kf1 {[%emt 0:00:27]} Ra1+ {[%emt 0:00:38]} 58. Kg2 {[%emt 0:00:05]} Re1 {[%emt 0:00:17]} 59. e5 {[%emt 0:00:30] aiming for e6.} gxf4 {[%emt 0:00:16]} 60. e6 {[%emt 0:00:16]} Kg5 {[%emt 0:00:35]} 61. Kf2 {[%emt 0:01:11]} (61. Rxf4 $5 h4 $8 62. Rxh4 Kxf5 63. Kf2 $11) 61... Ra1 {[%emt 0:01:02]} (61... Re4 $2 62. Rxf4 Re5 63. Kf3 $18) 62. Rxf4 {[%emt 0:00:02]} h4 {[%emt 0:00:25]} 63. Re4 {[%emt 0:00:51] Threatening mate with e7.} hxg3+ {[%emt 0:00:14]} 64. Kxg3 {[%emt 0:00:06] e7 would kill now.} Ra3+ {[%emt 0:00:11]} 65. Kf2 {[%emt 0:00:22]} Ra8 {[%emt 0:00:04]} 66. e7 {[%emt 0:01:08]} Re8 $1 {[%emt 0:00:05]} 67. Ke3 {[%emt 0:00:06]} Kxf5 {[%emt 0:00:16]} 68. Kd4 {[%emt 0:00:19] White wants to mate with Kd5.} Kg6 {[%emt 0:00:53]} 69. Kd5 {[%emt 0:00:03] Intending Ke6 and mate.} Kf7 {[%emt 0:00:05]} 70. Kd6 {[%emt 0:00:02] White threatens Kd7 and mate.} Ra8 {[%emt 0:00:11]} 71. e8=B+ {[%emt 0:00:23]} Rxe8 {[%emt 0:00:05]} 72. Rxe8 {[%emt 0:00:03]} Kxe8 {[%emt 0:00:05]} 73. Ke6 {[%emt 0:00:02]} Kf8 {[%emt 0:00:05]} 74. Kxf6 {[%emt 0:00:33] Weighted Error Value: White=0.19 (very precise) /Black=0.21 (precise)} 1/2-1/2